bitfinex-derivatives/quotes_SOLF0:USTF0_20251222
["timestamp","ask_amount","ask_price","bid_price","bid_amount"]
[1766361602667,0.05124631,126.06,126.04,0.00219748]
[1766361602868,0.05124631,126.06,125.8,3.22]
[1766361603166,210.761,126.15,125.82,3.22]
[1766361603363,210.761,126.15,125.84,3.22]
[1766361603563,7.14,126.1,125.99,3.22]
[1766361603763,7.14,126.1,126.0,3.22]
[1766361603968,0.0525108,126.06,126.03,0.0536031]
[1766361605269,0.0525108,126.06,126.03,0.0036031]
[1766361607763,0.0525108,126.06,126.03,3.3836031]
[1766361607969,0.0525108,126.06,126.03,0.0036031]
[1766361623881,0.0525108,126.06,126.0,3.38]
[1766361624785,0.0525108,126.06,126.02,0.05303587]
[1766361630088,0.0525108,126.06,126.02,3.47303587]
[1766361637792,0.0525108,126.06,126.02,0.05303587]
[1766361638194,0.0525108,126.06,126.02,3.34303587]
[1766361644307,0.0025108,126.06,126.02,3.34303587]
[1766361645710,0.0025108,126.06,126.04,3.29]
[1766361654514,0.0025108,126.06,126.05,3.29]
[1766361658520,7.1344,126.2,126.09,3.29]
[1766361658710,7.1344,126.2,126.1,3.29]
[1766361659521,0.05424383,126.16,126.14,0.05937209]
[1766361660613,7.133,126.22,126.14,3.34937209]
[1766361660810,7.133,126.22,126.14,3.29]
[1766361661009,157.6564,126.25,126.14,3.29]
[1766361661210,110.916,126.27,126.15,3.29]
[1766361661405,110.916,126.27,126.16,7.1359]
[1766361661613,7.1292,126.29,126.2,3.34595818]
[1766361661811,7.1292,126.29,126.15,111.0155]
[1766361661812,110.9146,126.27,126.18,3.29]
[1766361662020,110.8971,126.29,126.18,3.29]
[1766361662313,7.1292,126.29,126.19,3.29]
[1766361662614,110.8587,126.34,126.22,3.29]
[1766361662820,157.5787,126.34,126.24,3.29]
[1766361663210,110.8618,126.33,126.24,3.29]
[1766361663812,0.05896568,126.3,126.27,0.05371711]
[1766361665212,1.63896568,126.3,126.22,3.38]
[1766361665420,110.8625,126.33,126.22,3.38]
[1766361665609,110.8777,126.31,126.22,3.38]
[1766361666213,0.05743676,126.28,126.25,0.05781373]
[1766361667820,0.05743676,126.28,126.21,3.38]
[1766361668027,7.1288,126.3,126.21,3.38]
[1766361668723,110.8984,126.29,126.2,46.84]
[1766361668919,110.97529782,126.26,126.18,3.38]
[1766361669220,110.9232,126.26,126.18,3.38]
[1766361669922,0.05093957,126.23,126.18,3.38]
[1766361670910,0.05093957,126.23,126.19,0.05380497]
[1766361673726,7.13,126.28,126.19,3.43380497]
[1766361673925,7.13,126.28,126.19,3.38]
[1766361674623,0.05215284,126.25,126.22,3.43357688]
[1766361674820,7.13,126.28,126.22,3.43357688]
[1766361675126,7.1285,126.3,126.22,3.43357688]
[1766361675423,7.1285,126.3,126.22,3.38]
[1766361675825,0.05662558,126.27,126.25,0.05110855]
[1766361676122,7.1273,126.32,126.25,0.05110855]
[1766361677027,0.05758748,126.3,126.25,0.05110855]
[1766361677629,0.05758748,126.3,126.25,3.43110855]
[1766361680233,0.05758748,126.3,126.25,0.05110855]
[1766361680828,110.913,126.27,126.15,3.38]
[1766361681019,110.922,126.26,126.15,3.38]
[1766361681227,7.1314,126.25,126.15,3.38]
[1766361681424,110.9307,126.25,126.16,3.38]
[1766361681833,0.0593498,126.22,126.16,3.38]
[1766361682030,0.0593498,126.22,126.14,50.18]
[1766361682230,110.9507,126.23,126.14,50.18]
[1766361682533,46.66,126.22,126.14,50.18]
[1766361682833,110.974,126.2,126.1,3.38]
[1766361683034,110.9832,126.19,126.1,3.38]
[1766361683228,7.1354,126.18,126.1,3.38]
[1766361683428,118.1295,126.18,126.08,3.38]
[1766361683630,7.1354,126.18,126.08,3.38]
[1766361683936,0.05025667,126.14,126.12,0.05416508]
[1766361685129,0.00025667,126.14,126.12,0.05416508]
[1766361685536,7.1342,126.2,126.12,0.05416508]
[1766361685730,7.1342,126.2,126.11,3.38]
[1766361686028,110.9844,126.19,126.08,3.38]
[1766361686227,110.9933,126.18,126.08,3.38]
[1766361686427,0.05437091,126.14,126.12,0.05790119]
[1766361687830,0.05437091,126.14,126.08,3.38]
[1766361688727,0.05437091,126.14,126.1,0.05217791]
[1766361689739,0.05437091,126.14,126.06,50.23]
[1766361690038,111.0213,126.15,126.06,50.23]
[1766361690940,0.05415263,126.12,126.09,0.05729094]
[1766361692138,0.05415263,126.12,126.03,3.43]
[1766361692334,111.0291,126.14,126.03,3.43]
[1766361693339,0.05018899,126.1,126.07,0.06001037]
[1766361695132,7.137,126.15,126.07,3.49001037]
[1766361695333,46.7,126.16,126.07,3.43]
[1766361696145,0.05004884,126.13,126.1,0.05769476]
[1766361698238,0.05004884,126.13,126.07,3.43]
[1766361699244,0.05004884,126.13,126.09,0.05880451]
[1766361699436,0.05055643,126.12,126.09,0.05880451]
[1766361699636,46.7,126.16,126.09,0.05880451]
[1766361700643,0.05204563,126.14,126.09,3.23880451]
[1766361700944,0.00204563,126.14,126.09,3.23880451]
[1766361702639,0.00204563,126.14,126.1,3.18]
[1766361703244,0.00204563,126.14,126.12,3.18]
[1766361703445,0.00204563,126.14,126.12,3.23222219]
[1766361710946,0.00204563,126.14,126.12,10.37052219]
[1766361711343,0.00204563,126.14,126.13,3.18]
[1766361716452,0.00204563,126.14,126.12,0.05222219]
[1766361716752,0.00204563,126.14,126.12,3.23222219]
[1766361717958,0.00204563,126.14,126.12,0.05222219]
[1766361720855,0.00204563,126.14,126.1,3.18]
[1766361721754,0.00204563,126.14,126.11,0.06035287]
[1766361725855,0.00204563,126.14,126.11,3.33035287]
[1766361726959,0.00204563,126.14,126.11,10.46925287]
[1766361727152,0.00204563,126.14,126.12,3.27]
[1766361729253,0.00204563,126.14,126.12,10.4084]
[1766361729454,0.00204563,126.14,126.13,3.27]
[1766361729656,0.00204563,126.14,126.13,50.09]
[1766361738960,0.00204563,126.14,126.13,46.82]
[1766361739564,0.00204563,126.14,126.11,3.33035287]
[1766361739765,0.00204563,126.14,126.11,50.15035287]
[1766361741074,0.00204563,126.14,126.11,46.88035287]
[1766361742277,1.58204563,126.14,126.07,3.27]
[1766361742472,111.0101,126.16,126.05,50.09]
[1766361743172,111.0277,126.14,126.05,46.82]
[1766361743380,0.05829391,126.12,126.03,3.27]
[1766361743572,111.0277,126.14,126.03,3.27]
[1766361743968,111.0277,126.14,126.02,46.82]
[1766361744173,111.0277,126.14,126.02,50.09]
[1766361744477,0.05108619,126.09,126.02,50.09]
[1766361744680,0.05108619,126.09,126.02,57.2339]
[1766361745178,0.05108619,126.09,126.03,10.4133]
[1766361745374,0.05108619,126.09,126.05,3.3237462]
[1766361745771,7.1377,126.14,126.05,3.3237462]
[1766361745971,7.1377,126.14,126.05,3.27]
[1766361746771,0.05416787,126.11,126.08,0.05122528]
[1766361748599,0.05416787,126.11,126.08,0.00122528]
[1766361752495,7.19346787,126.11,126.08,0.00122528]
[1766361752702,0.05416787,126.11,126.08,0.00122528]
[1766361754198,7.19356787,126.11,126.08,0.00122528]
[1766361756004,0.05416787,126.11,126.08,0.00122528]
[1766361762403,7.19356787,126.11,126.08,0.00122528]
[1766361765104,0.05416787,126.11,126.08,3.37122528]
[1766361765411,0.05416787,126.11,126.08,0.00122528]
[1766361773118,7.19346787,126.11,126.08,0.00122528]
[1766361779112,7.1398,126.1,126.08,0.00122528]
[1766361780616,46.62,126.09,126.08,0.00122528]
[1766361786720,7.1414,126.07,126.01,3.37]
[1766361786918,46.64,126.06,126.01,3.37]
[1766361787725,0.06035316,126.05,126.02,0.05440349]
[1766361790319,0.00035316,126.05,126.02,3.45440349]
[1766361801332,111.047,126.12,126.02,3.45440349]
[1766361801633,157.6979,126.11,126.02,3.4]
[1766361802332,0.05200403,126.08,126.05,0.05713866]
[1766361804328,0.05200403,126.08,126.05,3.45713866]
[1766361805133,0.05200403,126.08,126.05,0.05713866]
[1766361806230,7.19300403,126.08,126.03,3.4]
[1766361807333,7.19300403,126.08,126.04,0.06002126]
[1766361807834,7.19300403,126.08,125.99,71.9855]
[1766361807835,111.13390403,126.08,125.99,3.2]
[1766361808027,268.8179,126.07,125.99,3.2]
[1766361808736,7.143,126.05,125.99,3.2]
[1766361808937,0.05557547,126.03,126.01,0.05203601]
[1766361810035,7.1417,126.07,126.01,3.25203601]
[1766361810334,46.64,126.06,126.01,3.25203601]
[1766361811133,0.05955359,126.05,126.01,3.25203601]
[1766361814138,0.05955359,126.05,126.01,0.05203601]
[1766361815340,7.20215359,126.05,126.01,0.05203601]
[1766361816345,0.05955359,126.05,126.01,3.22203601]
[1766361824649,7.20225359,126.05,126.01,3.22203601]
[1766361825446,0.05955359,126.05,126.01,3.22203601]
[1766361826447,7.20215359,126.05,126.01,3.22203601]
[1766361834448,7.20215359,126.05,126.01,0.05203601]
[1766361834655,7.20215359,126.05,125.99,3.17]
[1766361835754,7.20215359,126.05,126.01,0.05740879]
[1766361835954,7.20215359,126.05,126.01,3.22740879]
[1766361836155,0.05955359,126.05,126.01,3.22740879]
[1766361836366,111.0648,126.1,126.01,3.22740879]
[1766361836549,46.66,126.09,126.01,3.17]
[1766361837353,0.05143492,126.06,126.04,0.05856502]
[1766361838057,53.8004,126.09,126.04,0.05856502]
[1766361839261,0.05920074,126.08,126.04,0.05856502]
[1766361840055,0.05920074,126.08,126.04,3.22856502]
[1766361840258,2.22,126.13,126.04,3.22856502]
[1766361840461,2.22,126.12,126.04,3.17]
[1766361840655,9.3588,126.12,126.04,3.17]
[1766361841165,0.05433994,126.09,126.07,0.05630781]
[1766361842361,0.00433994,126.09,126.07,0.05630781]
[1766361846759,0.00433994,126.09,126.04,3.28]
[1766361847856,0.00433994,126.09,126.05,3.33076823]
[1766361848061,0.05311033,126.08,126.05,3.33076823]
[1766361852164,0.00311033,126.08,126.05,3.33076823]
[1766361855377,0.00311033,126.08,126.03,3.28]
[1766361855575,2.32,126.09,126.03,3.28]
[1766361856371,7.141,126.08,126.03,3.28]
[1766361856574,2.37200404,126.07,126.04,0.05634674]
[1766361856774,0.05200404,126.07,126.01,3.28]
[1766361857681,0.05200404,126.07,126.03,0.05887281]
[1766361862083,0.05200404,126.07,126.03,3.33887281]
[1766361865689,0.00200404,126.07,126.03,3.33887281]
[1766361866889,7.1389,126.12,126.03,3.33887281]
[1766361867087,7.1389,126.12,126.03,3.28]
[1766361867682,7.1389,126.12,126.04,3.41]
[1766361867882,0.05966194,126.09,126.07,0.05614834]
[1766361871487,53.7776,126.14,126.07,3.46614834]
[1766361872195,56.2076,126.14,126.07,3.46614834]
[1766361872387,2.43,126.13,126.07,3.46614834]
[1766361872586,2.48841362,126.12,126.07,3.46614834]
[1766361878295,9.62731362,126.12,126.07,0.05614834]
[1766361878492,2.48841362,126.12,126.07,0.05614834]
[1766361878689,2.48841362,126.12,125.97,125.4621]
[1766361878690,2.43,126.11,126.03,3.22]
[1766361879598,0.05376763,126.08,126.03,3.22]
[1766361880799,0.05376763,126.08,126.04,0.05267457]
[1766361887006,0.05376763,126.08,126.04,3.27267457]
[1766361888401,9.6183,126.13,126.04,3.27267457]
[1766361888603,2.48,126.15,126.04,3.22]
[1766361889299,9.6171,126.15,126.06,7.1417]
[1766361889602,0.05946217,126.12,126.09,3.27117748]
[1766361896402,2.53946217,126.12,126.09,0.05117748]
[1766361896609,2.53946217,126.12,126.05,3.22]
[1766361896807,2.48,126.12,126.05,3.22]
[1766361897307,9.6187,126.12,126.05,3.22]
[1766361897504,0.05666497,126.1,126.07,0.05524605]
[1766361900402,2.53666497,126.1,126.04,3.22]
[1766361900607,2.48,126.1,126.04,3.22]
[1766361901411,7.1398,126.1,126.06,0.05008268]
[1766361901604,2.48,126.12,126.06,3.27008268]
[1766361902405,0.0514445,126.1,126.06,0.05008268]
[1766361904814,7.1913445,126.1,126.06,0.05008268]
[1766361905010,9.7313445,126.1,126.04,3.22]
[1766361906105,7.1913445,126.1,126.06,3.56683155]
[1766361906411,9.6687,126.12,126.06,3.56683155]
[1766361907414,0.05454274,126.1,126.06,3.56683155]
[1766361909712,10.04585976,126.16,126.06,3.56683155]
[1766361909909,10.04585976,126.16,126.06,3.51]
[1766361910715,0.05764987,126.12,126.1,0.05953661]
[1766361913615,17.18245976,126.16,126.1,3.56953661]
[1766361913910,2.7,126.15,126.1,3.56953661]
[1766361914713,0.05007063,126.14,126.1,3.56953661]
[1766361920418,7.063e-05,126.14,126.1,3.56953661]
[1766361932428,7.063e-05,126.14,126.1,0.05953661]
[1766361932627,2.75007063,126.14,126.1,0.05953661]
[1766361933234,9.88767063,126.14,126.1,0.05953661]
[1766361936828,7.063e-05,126.14,126.1,3.54953661]
[1766361938838,111.0044,126.17,126.1,3.54953661]
[1766361938839,9.8853,126.18,126.1,3.54953661]
[1766361939042,9.8853,126.18,126.1,3.49]
[1766361939831,9.8853,126.18,126.09,7.1397]
[1766361939832,0.0563932,126.15,126.13,0.05434896]
[1766361942841,9.9444,126.2,126.13,3.54434896]
[1766361943046,2.81,126.19,126.13,3.49]
[1766361943930,2.81,126.19,126.15,0.06057179]
[1766361943931,0.0542646,126.17,126.15,0.06057179]
[1766361944337,2.81,126.23,126.15,3.55057179]
[1766361944545,2.81,126.23,126.15,3.49]
[1766361945442,0.05822161,126.2,126.18,0.0560646]
[1766361945633,2.81,126.23,126.18,0.0560646]
[1766361945937,2.92,126.24,126.18,3.5460646]
[1766361946640,0.05291137,126.22,126.18,3.5460646]
[1766361946845,2.97,126.28,126.18,3.5460646]
[1766361947047,2.97,126.28,126.18,3.49]
[1766361947943,0.05389834,126.24,126.22,0.05944854]
[1766361952948,10.1486,126.3,126.22,3.54944854]
[1766361953157,10.1486,126.3,126.22,3.49]
[1766361953557,3.02,126.29,126.22,3.49]
[1766361954057,3.02,126.29,126.24,0.05662313]
[1766361954058,0.05378386,126.27,126.24,0.05662313]
[1766361955359,3.07378386,126.27,126.24,0.05662313]
[1766361956761,0.05378386,126.27,126.24,0.05662313]
[1766361956961,0.05378386,126.27,126.24,3.54662313]
[1766361959466,0.05378386,126.27,126.24,0.05662313]
[1766361960263,0.00378386,126.27,126.24,3.54662313]
[1766361960468,46.6,126.31,126.24,3.54662313]
[1766361960866,3.07,126.3,126.24,0.05662313]
[1766361961166,3.07,126.29,126.24,0.05662313]
[1766361961365,0.05565726,126.28,126.24,0.05662313]
[1766361961671,3.12565726,126.28,126.24,0.05662313]
[1766361962772,3.01,126.24,126.17,46.8]
[1766361963465,3.01,126.24,126.17,50.29]
[1766361963667,0.05854754,126.22,126.19,0.05465472]
[1766361967279,2.96,126.21,126.15,3.48]
[1766361968170,2.96,126.21,126.13,3.48]
[1766361968374,0.05344948,126.18,126.16,0.05858768]
[1766361971572,10.142,126.24,126.16,3.53858768]
[1766361971773,10.142,126.24,126.16,3.48]
[1766361971976,3.01,126.23,126.16,3.48]
[1766361972579,0.05398682,126.21,126.18,0.05389009]
[1766361978791,0.00398682,126.21,126.18,3.53389009]
[1766361987400,0.00398682,126.21,126.18,0.05389009]
[1766361988994,0.00398682,126.21,126.18,3.53389009]
[1766361989195,10.46585976,126.26,126.18,3.53389009]
[1766361989395,7.1303,126.27,126.19,3.48]
[1766361989997,3.06,126.28,126.19,3.48]
[1766361990194,0.05986364,126.25,126.23,3.48]
[1766361990393,7.1292,126.29,126.23,3.48]
[1766361990790,157.4854,126.31,126.23,3.48]
[1766361990791,7.1278,126.31,126.23,3.48]
[1766361990996,49.66,126.32,126.23,3.48]
[1766361991215,3.06,126.34,126.23,3.48]
[1766361991500,3.06,126.34,126.27,3.48]
[1766361991696,120.69827969,126.38,126.27,3.48]
[1766361991697,113.8838,126.38,126.27,3.48]
[1766361991897,113.9031,126.35,126.27,3.48]
[1766361992098,3.06,126.34,126.27,3.48]
[1766361992292,3.06,126.36,126.29,3.53166485]
[1766361995411,3.05,126.35,126.29,3.53166485]
[1766361997910,3.05,126.37,126.29,3.53166485]
[1766361998214,3.05,126.37,126.32,0.05337008]
[1766361999212,3.05,126.37,126.29,3.48]
[1766361999610,3.05,126.36,126.29,3.48]
[1766362000313,0.06001567,126.34,126.31,3.40110657]
[1766362000512,3.05,126.38,126.31,3.40110657]
[1766362001410,10.174,126.38,126.31,3.40110657]
[1766362003222,10.1728,126.4,126.31,3.40110657]
[1766362003519,10.1728,126.4,126.34,0.05537334]
[1766362003717,10.1728,126.4,126.34,3.40537334]
[1766362004312,10.1736,126.39,126.34,0.05537334]
[1766362004511,10.1736,126.39,126.32,3.35]
[1766362004709,3.05,126.38,126.32,3.35]
[1766362004910,3.05,126.37,126.28,3.35]
[1766362005620,0.05274176,126.34,126.31,0.05316427]
[1766362005819,0.00274176,126.34,126.31,3.40316427]
[1766362006822,0.00274176,126.34,126.31,0.05316427]
[1766362011319,113.95824176,126.34,126.27,3.35]
[1766362011519,3.1,126.33,126.27,3.35]
[1766362011819,3.39,126.26,126.14,111.0262]
[1766362012019,3.39,126.26,126.12,111.036]
[1766362012020,3.39,126.24,126.12,46.76]
[1766362012214,3.39,126.22,126.12,46.76]
[1766362012415,0.05664253,126.18,126.16,0.06028975]
[1766362013525,7.1337,126.21,126.16,0.06028975]
[1766362014224,10.5237,126.21,126.16,0.06028975]
[1766362014423,3.39,126.2,126.16,0.03826259]
[1766362014618,160.9175,126.23,126.16,0.03826259]
[1766362014820,49.97,126.23,126.16,0.03826259]
[1766362015430,0.02812976,126.21,126.16,0.03826259]
[1766362019034,0.02812976,126.21,126.16,3.38826259]
[1766362019338,7.1319,126.24,126.16,3.38826259]
[1766362019637,7.1319,126.24,126.16,3.35]
[1766362020339,10.5208,126.26,126.19,0.05801161]
[1766362020728,46.6,126.27,126.19,3.40801161]
[1766362020933,46.6,126.27,126.22,0.05499364]
[1766362021139,3.39,126.25,126.16,21.35]
[1766362021338,3.39,126.24,126.16,3.35]
[1766362022234,0.05499364,126.21,126.19,0.05897621]
[1766362027533,0.05499364,126.21,126.16,3.35]
[1766362027534,0.05499364,126.21,126.13,28.3977]
[1766362027740,3.33,126.22,126.13,3.26]
[1766362028441,10.4632,126.22,126.13,3.26]
[1766362028633,0.05143414,126.19,126.16,0.05540703]
[1766362032135,0.05143414,126.19,126.12,3.26]
[1766362033128,0.05143414,126.19,126.14,0.05230536]
[1766362033636,3.38143414,126.19,126.14,0.05230536]
[1766362034837,10.51633414,126.19,126.14,0.05230536]
[1766362035937,2.32431389,126.18,126.14,0.05230536]
[1766362038135,12.78971389,126.18,126.14,0.00230536]
[1766362038338,3.33,126.17,126.1,3.26]
[1766362038536,2.32431389,126.16,126.1,3.26]
[1766362038736,5.65431389,126.16,126.08,46.8]
[1766362038937,5.65431389,126.16,126.08,50.06]
[1766362039133,5.65431389,126.16,126.09,3.26]
[1766362039338,0.06093074,126.14,126.11,0.05351207]
[1766362039744,0.00093074,126.14,126.11,3.31351207]
[1766362040136,5.65431389,126.2,126.11,3.31351207]
[1766362040349,2.32431389,126.22,126.12,3.26]
[1766362040851,3.33,126.23,126.13,3.26]
[1766362041149,0.05175527,126.19,126.17,0.05228454]
[1766362041537,0.00175527,126.19,126.17,0.05228454]
[1766362042141,7.1321,126.24,126.17,3.31228454]
[1766362042346,110.9288,126.26,126.17,3.31228454]
[1766362042347,10.4609,126.26,126.17,3.31228454]
[1766362042546,10.4609,126.26,126.17,3.26]
[1766362043350,0.05572842,126.23,126.2,0.0561846]
[1766362044240,46.62,126.27,126.2,3.3161846]
[1766362044446,49.95,126.27,126.2,3.3161846]
[1766362045349,0.05326781,126.25,126.2,3.3161846]
[1766362045547,0.00326781,126.25,126.2,3.3161846]
[1766362050645,3.31,126.31,126.21,3.24]
[1766362051651,3.31,126.31,126.2,157.7694]
[1766362051652,3.31,126.31,126.23,3.24]
[1766362051859,3.31,126.31,126.25,0.05971982]
[1766362052054,3.31,126.34,126.25,3.29971982]
[1766362052251,3.31,126.34,126.28,0.05086077]
[1766362052653,3.31,126.36,126.28,3.29086077]
[1766362052851,3.31,126.35,126.28,3.24]
[1766362053057,3.31,126.34,126.24,3.24]
[1766362053562,3.31,126.32,126.24,3.24]
[1766362053953,0.05566902,126.29,126.27,0.05498106]
[1766362056349,0.05566902,126.29,126.27,0.00498106]
[1766362056554,3.42566902,126.29,126.22,3.49]
[1766362057762,3.42566902,126.29,126.24,0.05183734]
[1766362058155,3.42566902,126.29,126.19,3.49]
[1766362058355,3.37,126.29,126.19,3.49]
[1766362059262,0.0589028,126.25,126.23,0.0596665]
[1766362059566,0.0600011,126.25,126.23,0.0596665]
[1766362059857,1.1e-06,126.25,126.23,0.0596665]
[1766362061463,1.1e-06,126.25,126.23,3.5496665]
[1766362062354,1.1e-06,126.25,126.23,0.0596665]
[1766362066468,1.1e-06,126.25,126.24,3.49]
[1766362080387,1.1e-06,126.25,126.24,50.27]
[1766362092493,1.1e-06,126.25,126.24,46.78]
[1766362092690,1.1e-06,126.25,126.23,0.0596665]
[1766362093496,1.1e-06,126.25,126.23,3.4896665]
[1766362097811,1.1e-06,126.25,126.24,3.43]
[1766362101106,4.68418063,126.33,126.24,6.49418063]
[1766362101316,4.68418063,126.33,126.26,3.43]
[1766362101501,3.2,126.32,126.27,46.78]
[1766362102305,8.61108063,126.33,126.28,0.05657449]
[1766362102306,3.25045194,126.31,126.28,0.05657449]
[1766362103710,3.25045194,126.31,126.27,46.78]
[1766362104098,3.25045194,126.31,126.25,50.21]
[1766362104812,3.25045194,126.31,126.27,0.05563596]
[1766362106011,3.2,126.3,126.25,46.78]
[1766362106208,4.68418063,126.29,126.23,3.43]
[1766362107109,0.05554851,126.27,126.25,0.05708484]
[1766362109209,3.45,126.33,126.25,3.26708484]
[1766362109414,3.45,126.33,126.27,3.21]
[1766362110103,0.05864188,126.31,126.29,0.05017584]
[1766362110502,110.8269,126.37,126.29,0.05017584]
[1766362110503,7.31821105,126.37,126.29,3.26017584]
[1766362110709,3.45,126.37,126.3,46.78]
[1766362110908,3.45,126.35,126.28,49.99]
[1766362111102,3.45,126.33,126.27,46.78]
[1766362111500,0.05008216,126.31,126.29,0.05963799]
[1766362112216,0.05008216,126.31,126.27,46.78]
[1766362112415,0.05008216,126.31,126.24,49.99]
[1766362112613,3.45,126.32,126.24,49.99]
[1766362113212,3.45,126.32,126.27,0.05389405]
[1766362113513,0.05760627,126.29,126.27,0.05389405]
[1766362114409,3.50760627,126.29,126.27,0.00389405]
[1766362116713,4.93,126.28,126.27,0.00389405]
[1766362116913,3.35,126.27,126.19,3.3]
[1766362117309,3.35,126.26,126.17,10.4355]
[1766362117523,3.35,126.26,126.17,57.2155]
[1766362117714,3.35,126.26,126.18,3.3]
[1766362118117,0.0533844,126.23,126.21,0.05104683]
[1766362119022,3.4033844,126.23,126.15,57.2166]
[1766362119209,3.4033844,126.23,126.15,50.08]
[1766362119210,3.35,126.23,126.15,50.08]
[1766362120018,3.35,126.23,126.16,3.3]
[1766362120217,3.35,126.23,126.18,0.05570323]
[1766362120218,0.05485387,126.2,126.18,0.05570323]
[1766362125130,3.40485387,126.2,126.14,3.3]
[1766362125325,3.35,126.2,126.14,3.3]
[1766362126025,3.35,126.2,126.16,0.05948944]
[1766362126222,0.0525371,126.18,126.16,0.05948944]
[1766362127129,0.0525371,126.18,126.12,46.78]
[1766362128025,0.0525371,126.18,126.14,0.05990707]
[1766362129133,3.4025371,126.18,126.14,0.05990707]
[1766362130422,0.0525371,126.18,126.14,0.05990707]
[1766362133030,3.4025371,126.18,126.09,18.0]
[1766362133230,3.35,126.18,126.09,21.3]
[1766362133938,10.4855,126.18,126.09,21.3]
[1766362134125,0.05804579,126.15,126.12,0.05678567]
[1766362140444,3.35,126.13,126.06,3.3]
[1766362141352,3.35,126.16,126.06,3.3]
[1766362141540,0.05757444,126.11,126.08,0.05389301]
[1766362141739,3.35,126.16,126.08,3.35592952]
[1766362141952,3.35,126.16,126.09,3.3]
[1766362142855,0.05286017,126.14,126.11,0.0566824]
[1766362147951,0.05286017,126.14,126.0,113.46985733]
[1766362147952,3.53286017,126.14,126.06,46.82]
[1766362148261,3.48,126.13,126.06,46.82]
[1766362148552,3.48,126.13,126.05,3.41]
[1766362149157,0.05819257,126.1,126.08,0.05363828]
[1766362151555,0.05819257,126.1,126.04,46.82]
[1766362151556,3.53819257,126.1,126.04,46.82]
[1766362152359,3.53819257,126.1,126.04,50.23]
[1766362152551,3.53819257,126.1,126.06,0.05003547]
[1766362152947,3.53819257,126.1,126.01,3.41]
[1766362153147,3.48,126.1,126.02,46.84]
[1766362153654,3.48,126.09,126.02,46.84]
[1766362154051,0.05996075,126.07,126.04,0.06027029]
[1766362155354,3.48,126.13,126.04,3.47027029]
[1766362155553,3.48,126.13,126.04,3.41]
[1766362156358,3.48,126.13,126.07,3.4605292]
[1766362157454,0.05958974,126.11,126.07,3.4605292]
[1766362157850,46.62,126.15,126.07,3.4605292]
[1766362158057,3.48,126.14,126.07,3.41]
[1766362159159,3.48,126.14,126.09,0.05416633]
[1766362159160,0.05412378,126.12,126.09,0.05416633]
[1766362160357,0.00412378,126.12,126.09,3.46416633]
[1766362160554,3.48,126.16,126.09,3.46416633]
[1766362161154,3.48,126.18,126.09,3.46416633]
[1766362161349,3.48,126.18,126.09,3.41]
[1766362161556,0.05856359,126.15,126.12,0.05881485]
[1766362163654,3.48,126.18,126.12,3.46881485]
[1766362164659,0.05810024,126.16,126.12,3.46881485]
[1766362165260,3.48,126.22,126.14,3.41]
[1766362166270,0.05095157,126.19,126.17,0.05109171]
[1766362167972,3.48,126.22,126.17,0.05109171]
[1766362168360,3.48,126.24,126.17,0.05109171]
[1766362169168,0.06103922,126.22,126.17,3.46109171]
[1766362170572,50.1,126.26,126.18,3.41]
[1766362171170,3.48,126.26,126.19,3.41]
[1766362171577,0.00240541,126.24,126.21,3.46164943]
[1766362171768,3.48,126.29,126.21,3.46164943]
[1766362171769,3.48,126.29,126.21,3.41]
[1766362172875,0.06088182,126.26,126.24,0.05744352]
[1766362176878,0.00088182,126.26,126.24,0.05744352]
[1766362178965,3.48,126.32,126.24,3.26744352]
[1766362179170,3.48,126.32,126.24,3.21]
[1766362179684,3.48,126.34,126.25,3.21]
[1766362179979,0.02446192,126.31,126.28,0.0549646]
[1766362180376,3.50446192,126.31,126.28,0.0049646]
[1766362180573,3.50446192,126.31,126.25,3.21]
[1766362181378,3.50446192,126.31,126.23,50.01]